[Event "*** SCC Grand Prix: Titled Tuesday Blitz"]
[Site "Chess.com"]
[Date "2020.07.07"]
[Round "10"]
[White "GianmarcoVaR"]
[Black "sasko1234"]
[Result "1-0"]
[WhiteElo "2537"]
[BlackElo "2407"]
[TimeControl "180+1"]
[EndTime "11:58:37 PDT"]
[Termination "GianmarcoVaR won on time"]

1. c4 {[%clk 0:02:58.7]} 1... Nf6 {[%clk 0:02:59.4]} 2. Nc3 {[%clk 0:02:58.8]}
2... d6 {[%clk 0:02:59.7]} 3. g3 {[%clk 0:02:58.7]} 3... c6 {[%clk 0:02:59.7]}
4. Bg2 {[%clk 0:02:58.8]} 4... e5 {[%clk 0:02:59.7]} 5. Rb1 {[%clk 0:02:55.9]}
5... Be7 {[%clk 0:02:58.5]} 6. Nf3 {[%clk 0:02:51.8]} 6... Bg4 {[%clk
0:02:57.7]} 7. O-O {[%clk 0:02:50.9]} 7... O-O {[%clk 0:02:56.6]} 8. b4 {[%clk
0:02:49.7]} 8... Nbd7 {[%clk 0:02:55.7]} 9. b5 {[%clk 0:02:49.6]} 9... d5 {[%clk
0:02:39]} 10. bxc6 {[%clk 0:02:45.9]} 10... bxc6 {[%clk 0:02:38.8]} 11. cxd5
{[%clk 0:01:59.2]} 11... cxd5 {[%clk 0:02:36.5]} 12. d3 {[%clk 0:01:59.2]} 12...
d4 {[%clk 0:02:26.8]} 13. Na4 {[%clk 0:01:49.6]} 13... Qc7 {[%clk 0:01:53.4]}
14. Bg5 {[%clk 0:01:36.9]} 14... Rab8 {[%clk 0:01:46.7]} 15. Qd2 {[%clk
0:01:11.4]} 15... h6 {[%clk 0:01:39.9]} 16. Bxf6 {[%clk 0:01:10.6]} 16... Nxf6
{[%clk 0:01:29.3]} 17. Nb2 {[%clk 0:00:36.5]} 17... Be6 {[%clk 0:01:19.4]} 18.
Rfc1 {[%clk 0:00:34.7]} 18... Qd6 {[%clk 0:01:16.6]} 19. Nc4 {[%clk 0:00:34.6]}
19... Bxc4 {[%clk 0:01:13]} 20. Rxb8 {[%clk 0:00:30.9]} 20... Rxb8 {[%clk
0:01:09.7]} 21. Rxc4 {[%clk 0:00:22.3]} 21... Nd5 {[%clk 0:00:55.9]} 22. Qa5
{[%clk 0:00:09]} 22... Rb1+ {[%clk 0:00:45.7]} 23. Bf1 {[%clk 0:00:08.7]} 23...
Bf6 {[%clk 0:00:34.3]} 24. Qxa7 {[%clk 0:00:08.5]} 24... Nc3 {[%clk 0:00:30.9]}
25. Kg2 {[%clk 0:00:07.1]} 25... Qe6 {[%clk 0:00:19.1]} 26. Qa8+ {[%clk
0:00:06.2]} 26... Kh7 {[%clk 0:00:19.1]} 27. a4 {[%clk 0:00:04.2]} 27... e4
{[%clk 0:00:14.7]} 28. dxe4 {[%clk 0:00:02]} 28... Qxc4 {[%clk 0:00:14.1]} 29.
e5 {[%clk 0:00:01.7]} 29... Be7 {[%clk 0:00:09.7]} 30. Nd2 {[%clk 0:00:02.1]}
30... Qe6 {[%clk 0:00:06.5]} 31. Nxb1 {[%clk 0:00:02.2]} 31... Nxb1 {[%clk
0:00:05.2]} 32. Qe4+ {[%clk 0:00:02.6]} 32... Qg6 {[%clk 0:00:05]} 33. Qxd4
{[%clk 0:00:03.1]} 33... Na3 {[%clk 0:00:02]} 34. e3 {[%clk 0:00:03.3]} 34...
Nc2 {[%clk 0:00:02]} 35. Qc4 {[%clk 0:00:03.4]} 35... Ne1+ {[%clk 0:00:02]} 36.
Kg1 {[%clk 0:00:03.2]} 36... Nf3+ {[%clk 0:00:02.3]} 37. Kg2 {[%clk 0:00:03.6]}
37... Ne1+ {[%clk 0:00:02.6]} 38. Kg1 {[%clk 0:00:03.7]} 38... Nf3+ {[%clk
0:00:02.9]} 39. Kh1 {[%clk 0:00:04.2]} 39... Ne1 {[%clk 0:00:02.3]} 40. f3
{[%clk 0:00:03.2]} 40... Nxf3 {[%clk 0:00:01.7]} 41. Bd3 {[%clk 0:00:02.8]} 1-0

[Event "*** SCC Grand Prix: Titled Tuesday Blitz"]
[Site "Chess.com"]
[Date "2020.07.07"]
[Round "10"]
[White "tigra"]
[Black "IMHansNiemann"]
[Result "1-0"]
[WhiteElo "2814"]
[BlackElo "2918"]
[TimeControl "180+1"]
[EndTime "11:58:38 PDT"]
[Termination "tigra won on time"]

1. e4 {[%clk 0:03:00.9]} 1... g6 {[%clk 0:02:58.2]} 2. d4 {[%clk 0:03:00.7]}
2... Bg7 {[%clk 0:02:58.6]} 3. Nf3 {[%clk 0:02:59.8]} 3... d6 {[%clk 0:02:59]}
4. Be2 {[%clk 0:03:00.4]} 4... Nf6 {[%clk 0:02:58.5]} 5. Nc3 {[%clk 0:03:00.3]}
5... O-O {[%clk 0:02:58.7]} 6. O-O {[%clk 0:03:00.2]} 6... Nc6 {[%clk
0:02:57.8]} 7. Be3 {[%clk 0:02:56.9]} 7... Bg4 {[%clk 0:02:53.9]} 8. Re1 {[%clk
0:02:56.6]} 8... Bxf3 {[%clk 0:02:48]} 9. Bxf3 {[%clk 0:02:56.4]} 9... e5 {[%clk
0:02:48.6]} 10. dxe5 {[%clk 0:02:56.8]} 10... dxe5 {[%clk 0:02:45.6]} 11. Bc5
{[%clk 0:02:48.7]} 11... Re8 {[%clk 0:02:43.2]} 12. Nd5 {[%clk 0:02:44.9]} 12...
b6 {[%clk 0:02:29]} 13. Be3 {[%clk 0:02:27.5]} 13... Nxd5 {[%clk 0:02:22.7]} 14.
exd5 {[%clk 0:02:27.5]} 14... e4 {[%clk 0:02:23.2]} 15. dxc6 {[%clk 0:02:25.8]}
15... exf3 {[%clk 0:02:19.8]} 16. Qxf3 {[%clk 0:02:26.4]} 16... Bxb2 {[%clk
0:02:17.7]} 17. Rad1 {[%clk 0:02:24]} 17... Qf6 {[%clk 0:02:09.2]} 18. Qd5
{[%clk 0:02:10.3]} 18... Qe6 {[%clk 0:01:47.2]} 19. Qd7 {[%clk 0:02:05.3]} 19...
Re7 {[%clk 0:01:22.9]} 20. Qd5 {[%clk 0:01:36.7]} 20... Qxd5 {[%clk 0:01:21.2]}
21. Rxd5 {[%clk 0:01:37.6]} 21... Re6 {[%clk 0:01:21.7]} 22. Red1 {[%clk
0:01:33.4]} 22... Kg7 {[%clk 0:01:10.9]} 23. c3 {[%clk 0:01:24.8]} 23... Bxc3
{[%clk 0:01:00.6]} 24. Rc1 {[%clk 0:01:22.9]} 24... Bf6 {[%clk 0:00:58.1]} 25.
g4 {[%clk 0:01:18.6]} 25... h6 {[%clk 0:00:53.9]} 26. Rc4 {[%clk 0:00:51.6]}
26... Rd8 {[%clk 0:00:51.5]} 27. Rd7 {[%clk 0:00:41.6]} 27... Rxc6 {[%clk
0:00:34]} 28. Rxf7+ {[%clk 0:00:38.8]} 28... Kxf7 {[%clk 0:00:33.5]} 29. Rxc6
{[%clk 0:00:39.5]} 29... Be5 {[%clk 0:00:33.9]} 30. h4 {[%clk 0:00:26.5]} 30...
h5 {[%clk 0:00:23]} 31. gxh5 {[%clk 0:00:20.9]} 31... gxh5 {[%clk 0:00:23.9]}
32. Kg2 {[%clk 0:00:21.7]} 32... Bd6 {[%clk 0:00:23.3]} 33. a4 {[%clk
0:00:19.8]} 33... Ke6 {[%clk 0:00:21.4]} 34. Rc4 {[%clk 0:00:19]} 34... c5
{[%clk 0:00:21.3]} 35. f4 {[%clk 0:00:18.6]} 35... a6 {[%clk 0:00:20.2]} 36. Kf3
{[%clk 0:00:18.7]} 36... b5 {[%clk 0:00:19.8]} 37. axb5 {[%clk 0:00:18.7]} 37...
axb5 {[%clk 0:00:20.7]} 38. Rc1 {[%clk 0:00:19]} 38... c4 {[%clk 0:00:20.8]} 39.
Ke4 {[%clk 0:00:19.7]} 39... Re8 {[%clk 0:00:20.4]} 40. Bd4 {[%clk 0:00:17.5]}
40... Kd7+ {[%clk 0:00:18.2]} 41. Kd5 {[%clk 0:00:17.9]} 41... Bxf4 {[%clk
0:00:18.2]} 42. Ra1 {[%clk 0:00:17.9]} 42... Rc8 {[%clk 0:00:15.8]} 43. Rf1
{[%clk 0:00:17.5]} 43... Rf8 {[%clk 0:00:12.5]} 44. Be5 {[%clk 0:00:12.8]} 44...
Bh6 {[%clk 0:00:11.7]} 45. Ra1 {[%clk 0:00:12.9]} 45... Rf1 {[%clk 0:00:04.1]}
46. Ra7+ {[%clk 0:00:12.8]} 46... Ke8 {[%clk 0:00:03.9]} 47. Ke6 {[%clk
0:00:12.8]} 47... Rd1 {[%clk 0:00:02.6]} 48. Re7+ {[%clk 0:00:11]} 48... Kf8
{[%clk 0:00:02.6]} 49. Rh7 {[%clk 0:00:11.1]} 1-0

[Event "*** SCC Grand Prix: Titled Tuesday Blitz"]
[Site "Chess.com"]
[Date "2020.07.07"]
[Round "10"]
[White "carlesdc96"]
[Black "vovachesss"]
[Result "0-1"]
[WhiteElo "2704"]
[BlackElo "2594"]
[TimeControl "180+1"]
[EndTime "11:58:39 PDT"]
[Termination "vovachesss won by resignation"]

1. e4 {[%clk 0:03:00.9]} 1... e5 {[%clk 0:02:58.8]} 2. Nf3 {[%clk 0:02:57.5]}
2... d5 {[%clk 0:02:59.4]} 3. exd5 {[%clk 0:02:56.8]} 3... e4 {[%clk 0:02:59.6]}
4. Qe2 {[%clk 0:02:56.2]} 4... Nf6 {[%clk 0:02:59.9]} 5. Nc3 {[%clk 0:02:53.4]}
5... Be7 {[%clk 0:02:58.8]} 6. Nxe4 {[%clk 0:02:52.5]} 6... O-O {[%clk
0:02:59.5]} 7. Nxf6+ {[%clk 0:02:47.2]} 7... Bxf6 {[%clk 0:03:00.4]} 8. Qd1
{[%clk 0:02:47.5]} 8... Qxd5 {[%clk 0:02:59.2]} 9. Be2 {[%clk 0:02:47.3]} 9...
c5 {[%clk 0:02:56.7]} 10. O-O {[%clk 0:02:47]} 10... Nc6 {[%clk 0:02:57]} 11. d3
{[%clk 0:02:46.8]} 11... b6 {[%clk 0:02:57.1]} 12. c3 {[%clk 0:02:46.6]} 12...
Ba6 {[%clk 0:02:54]} 13. Qa4 {[%clk 0:02:40.7]} 13... Bb7 {[%clk 0:02:31.7]} 14.
Be3 {[%clk 0:02:39.6]} 14... Rad8 {[%clk 0:02:27.7]} 15. Rad1 {[%clk 0:02:37.3]}
15... Rd7 {[%clk 0:02:19.6]} 16. Qg4 {[%clk 0:02:27.6]} 16... Rfd8 {[%clk
0:02:17.7]} 17. a3 {[%clk 0:02:21.8]} 17... h5 {[%clk 0:02:04.4]} 18. Qe4 {[%clk
0:02:02.8]} 18... Qb3 {[%clk 0:01:58.6]} 19. Qf5 {[%clk 0:01:47]} 19... Rd5
{[%clk 0:01:39.5]} 20. Qh3 {[%clk 0:01:46.5]} 20... Qxb2 {[%clk 0:01:30.3]} 21.
c4 {[%clk 0:01:45]} 21... Bc8 {[%clk 0:01:10.5]} 22. Qg3 {[%clk 0:01:44.2]}
22... R5d7 {[%clk 0:01:06.6]} 23. Rd2 {[%clk 0:01:42]} 23... Qxa3 {[%clk
0:01:05.2]} 24. Ng5 {[%clk 0:01:38]} 24... Nd4 {[%clk 0:00:23.2]} 25. Ne4 {[%clk
0:01:03.7]} 25... Be7 {[%clk 0:00:17.2]} 26. Bxh5 {[%clk 0:00:58.8]} 26... Nf5
{[%clk 0:00:16.5]} 27. Qf4 {[%clk 0:00:53]} 27... g6 {[%clk 0:00:16.6]} 28. Be2
{[%clk 0:00:47.3]} 28... Bb7 {[%clk 0:00:16.4]} 29. g4 {[%clk 0:00:44.6]} 29...
Bxe4 {[%clk 0:00:13.8]} 30. Qxe4 {[%clk 0:00:41.9]} 30... Nxe3 {[%clk
0:00:13.8]} 31. fxe3 {[%clk 0:00:42.8]} 31... Bf8 {[%clk 0:00:11.7]} 32. g5
{[%clk 0:00:38.7]} 32... Re7 {[%clk 0:00:09.4]} 33. Qf4 {[%clk 0:00:38.4]} 33...
Qc3 {[%clk 0:00:09.4]} 34. Rdd1 {[%clk 0:00:37.6]} 34... Qe5 {[%clk 0:00:08.8]}
35. e4 {[%clk 0:00:36.6]} 35... Bg7 {[%clk 0:00:07.6]} 36. h4 {[%clk 0:00:36.1]}
36... Qxf4 {[%clk 0:00:06.9]} 37. Rxf4 {[%clk 0:00:35.9]} 37... Be5 {[%clk
0:00:06.9]} 38. Rff1 {[%clk 0:00:34.6]} 38... a5 {[%clk 0:00:07.4]} 39. Rd2
{[%clk 0:00:34.6]} 39... a4 {[%clk 0:00:04.5]} 40. Ra2 {[%clk 0:00:32.8]} 40...
Ra8 {[%clk 0:00:05.1]} 41. Kg2 {[%clk 0:00:32.6]} 41... Ra5 {[%clk 0:00:05.1]}
42. Rb1 {[%clk 0:00:32.4]} 42... a3 {[%clk 0:00:05.5]} 43. Rxb6 {[%clk
0:00:32.1]} 43... Rea7 {[%clk 0:00:04.4]} 44. Kf3 {[%clk 0:00:31]} 44... Bd4
{[%clk 0:00:04.3]} 45. Bf1 {[%clk 0:00:30.8]} 45... Ra4 {[%clk 0:00:04.7]} 46.
Be2 {[%clk 0:00:26]} 46... Rb4 {[%clk 0:00:05.1]} 47. Rxb4 {[%clk 0:00:26.2]}
47... cxb4 {[%clk 0:00:05.1]} 48. Bd1 {[%clk 0:00:27.1]} 48... Bc3 {[%clk
0:00:03.9]} 49. Bb3 {[%clk 0:00:27.5]} 49... Kf8 {[%clk 0:00:04.4]} 50. Ke3
{[%clk 0:00:24.6]} 50... Rd7 {[%clk 0:00:04]} 51. Rf2 {[%clk 0:00:23.6]} 51...
Bd4+ {[%clk 0:00:04]} 52. Ke2 {[%clk 0:00:23]} 52... Bxf2 {[%clk 0:00:04.9]} 53.
Kxf2 {[%clk 0:00:23.9]} 53... Rxd3 {[%clk 0:00:05.6]} 54. Bc2 {[%clk 0:00:21.5]}
54... Rd2+ {[%clk 0:00:05.9]} 0-1

[Event "*** SCC Grand Prix: Titled Tuesday Blitz"]
[Site "Chess.com"]
[Date "2020.07.07"]
[Round "10"]
[White "stolencandy13"]
[Black "IMRosen"]
[Result "1-0"]
[WhiteElo "2379"]
[BlackElo "2516"]
[TimeControl "180+1"]
[EndTime "11:58:39 PDT"]
[Termination "stolencandy13 won by resignation"]

1. e4 {[%clk 0:03:00.9]} 1... e5 {[%clk 0:02:57.8]} 2. Nf3 {[%clk 0:02:58.5]}
2... Nf6 {[%clk 0:02:58.4]} 3. Nc3 {[%clk 0:02:58.6]} 3... Nc6 {[%clk
0:02:58.7]} 4. d4 {[%clk 0:02:59.2]} 4... exd4 {[%clk 0:02:57]} 5. Nxd4 {[%clk
0:03:00.1]} 5... Bb4 {[%clk 0:02:57.4]} 6. Nxc6 {[%clk 0:02:58.7]} 6... bxc6
{[%clk 0:02:55.3]} 7. Bd3 {[%clk 0:02:58.9]} 7... d5 {[%clk 0:02:55.5]} 8. exd5
{[%clk 0:02:59.6]} 8... cxd5 {[%clk 0:02:56.4]} 9. O-O {[%clk 0:02:59.9]} 9...
O-O {[%clk 0:02:56.9]} 10. h3 {[%clk 0:03:00.5]} 10... c6 {[%clk 0:02:51.4]} 11.
Qf3 {[%clk 0:03:00.4]} 11... Bd6 {[%clk 0:02:41.5]} 12. Bf4 {[%clk 0:02:59.9]}
12... Be6 {[%clk 0:02:30.5]} 13. Ne2 {[%clk 0:02:59.8]} 13... c5 {[%clk
0:02:19.5]} 14. Rad1 {[%clk 0:02:58.1]} 14... Rb8 {[%clk 0:01:37.6]} 15. b3
{[%clk 0:02:45.2]} 15... Re8 {[%clk 0:01:34]} 16. c4 {[%clk 0:02:44.5]} 16... d4
{[%clk 0:01:33.4]} 17. Bb1 {[%clk 0:02:39.8]} 17... a5 {[%clk 0:01:29.4]} 18.
Nxd4 {[%clk 0:02:33.7]} 18... cxd4 {[%clk 0:00:38.1]} 19. Rxd4 {[%clk
0:02:34.6]} 19... Rb6 {[%clk 0:00:38.7]} 20. Rfd1 {[%clk 0:02:26.1]} 20... Qc8
{[%clk 0:00:15.8]} 21. Rxd6 {[%clk 0:02:22.9]} 21... Rxd6 {[%clk 0:00:15.9]} 22.
Bxd6 {[%clk 0:02:22.6]} 22... Bd7 {[%clk 0:00:11.5]} 23. Qd3 {[%clk 0:02:17]}
23... Bc6 {[%clk 0:00:10.4]} 24. Bg3 {[%clk 0:02:11]} 24... Ne4 {[%clk
0:00:08.5]} 25. Re1 {[%clk 0:02:01.7]} 25... g6 {[%clk 0:00:04.4]} 26. Bf4
{[%clk 0:01:56.6]} 26... Nc5 {[%clk 0:00:02.6]} 27. Rxe8+ {[%clk 0:01:55.5]}
27... Qxe8 {[%clk 0:00:03.5]} 28. Qe3 {[%clk 0:01:55.4]} 28... Ne6 {[%clk
0:00:02.2]} 29. Bh6 {[%clk 0:01:52.5]} 29... Qd7 {[%clk 0:00:02.7]} 30. Bc2
{[%clk 0:01:47.3]} 30... f6 {[%clk 0:00:03.1]} 31. Bf4 {[%clk 0:01:42.5]} 31...
g5 {[%clk 0:00:01.5]} 32. Bg3 {[%clk 0:01:41.4]} 32... Nd4 {[%clk 0:00:02.1]}
33. Bd3 {[%clk 0:01:37.1]} 33... Nf5 {[%clk 0:00:02.2]} 34. Bxf5 {[%clk
0:01:26.6]} 34... Qxf5 {[%clk 0:00:03.1]} 35. Kh2 {[%clk 0:01:26.1]} 35... Bd7
{[%clk 0:00:02.2]} 36. Qd4 {[%clk 0:01:23.3]} 36... h5 {[%clk 0:00:02.6]} 37.
Qd5+ {[%clk 0:01:22]} 37... Be6 {[%clk 0:00:02.1]} 38. Qxf5 {[%clk 0:01:21.3]}
38... Bxf5 {[%clk 0:00:03]} 39. Bc7 {[%clk 0:01:16.8]} 39... Bb1 {[%clk
0:00:02.9]} 40. a3 {[%clk 0:01:14.2]} 40... Ba2 {[%clk 0:00:03.1]} 41. Bxa5
{[%clk 0:01:09.6]} 41... Bxb3 {[%clk 0:00:03.8]} 42. c5 {[%clk 0:01:10]} 42...
Bd5 {[%clk 0:00:03.8]} 43. Kg3 {[%clk 0:01:09.5]} 43... Kf7 {[%clk 0:00:04.1]}
44. f3 {[%clk 0:01:09.1]} 44... Ke6 {[%clk 0:00:04.4]} 45. Kf2 {[%clk
0:01:09.3]} 45... Bc6 {[%clk 0:00:04.7]} 46. Ke3 {[%clk 0:01:09.1]} 46... Kd5
{[%clk 0:00:05.4]} 47. Bd8 {[%clk 0:01:07.2]} 47... Ke6 {[%clk 0:00:03.5]} 48.
g3 {[%clk 0:01:02.9]} 48... g4 {[%clk 0:00:02.2]} 49. hxg4 {[%clk 0:01:02.2]}
49... hxg4 {[%clk 0:00:02.6]} 50. fxg4 {[%clk 0:01:02.7]} 50... Kf7 {[%clk
0:00:01.7]} 51. Kd4 {[%clk 0:01:01.3]} 51... Ke6 {[%clk 0:00:02]} 52. Kc4 {[%clk
0:01:00.2]} 52... Bd5+ {[%clk 0:00:01.1]} 53. Kb4 {[%clk 0:00:59.8]} 53... Bf3
{[%clk 0:00:01.8]} 54. g5 {[%clk 0:00:58.9]} 54... fxg5 {[%clk 0:00:02]} 55.
Bxg5 {[%clk 0:00:58.6]} 55... Bc6 {[%clk 0:00:02.6]} 56. Ka5 {[%clk 0:00:58.6]}
56... Kd7 {[%clk 0:00:03]} 57. Kb6 {[%clk 0:00:58.6]} 57... Bf3 {[%clk
0:00:02.7]} 58. Bf4 {[%clk 0:00:58.7]} 58... Kc8 {[%clk 0:00:03.6]} 59. c6
{[%clk 0:00:57.9]} 59... Bg4 {[%clk 0:00:03.3]} 60. a4 {[%clk 0:00:57.9]} 60...
Be2 {[%clk 0:00:01.4]} 61. a5 {[%clk 0:00:58.2]} 61... Kd8 {[%clk 0:00:02.1]}
62. a6 {[%clk 0:00:57.8]} 62... Ke7 {[%clk 0:00:02.8]} 63. a7 {[%clk 0:00:57.9]}
63... Ke6 {[%clk 0:00:03.4]} 64. a8=Q {[%clk 0:00:57.9]} 64... Kd5 {[%clk
0:00:03.9]} 65. Qd8+ {[%clk 0:00:57.8]} 65... Kc4 {[%clk 0:00:04.4]} 66. c7
{[%clk 0:00:57.1]} 66... Kb3 {[%clk 0:00:04.5]} 67. c8=Q {[%clk 0:00:57]} 67...
Bc4 {[%clk 0:00:04.3]} 68. Qd1+ {[%clk 0:00:56.1]} 68... Ka3 {[%clk 0:00:02.5]}
69. Qc5+ {[%clk 0:00:53]} 69... Kb2 {[%clk 0:00:02.2]} 70. Qb4+ {[%clk
0:00:52.3]} 1-0

[Event "*** SCC Grand Prix: Titled Tuesday Blitz"]
[Site "Chess.com"]
[Date "2020.07.07"]
[Round "10"]
[White "FabianoCaruana"]
[Black "Firouzja2003"]
[Result "1-0"]
[WhiteElo "3021"]
[BlackElo "3102"]
[TimeControl "180+1"]
[EndTime "11:58:40 PDT"]
[Termination "FabianoCaruana won on time"]

1. e4 {[%clk 0:03:00.9]} 1... c6 {[%clk 0:02:59.5]} 2. d4 {[%clk 0:02:59.6]}
2... d5 {[%clk 0:02:59.6]} 3. exd5 {[%clk 0:03:00]} 3... cxd5 {[%clk 0:02:59.9]}
4. Bd3 {[%clk 0:03:00.7]} 4... Nc6 {[%clk 0:02:57.6]} 5. c3 {[%clk 0:03:01.3]}
5... Nf6 {[%clk 0:02:56.9]} 6. h3 {[%clk 0:03:00.6]} 6... g6 {[%clk 0:02:56.7]}
7. Nf3 {[%clk 0:03:00.1]} 7... Bf5 {[%clk 0:02:55.7]} 8. Be2 {[%clk 0:03:00.5]}
8... Bg7 {[%clk 0:02:52.4]} 9. O-O {[%clk 0:03:01]} 9... O-O {[%clk 0:02:52.2]}
10. Re1 {[%clk 0:03:01.5]} 10... Nd7 {[%clk 0:02:40.1]} 11. Bf4 {[%clk
0:02:58.2]} 11... f6 {[%clk 0:02:30.9]} 12. Bh2 {[%clk 0:02:53.5]} 12... Nb6
{[%clk 0:02:07.2]} 13. a4 {[%clk 0:02:43.4]} 13... a6 {[%clk 0:01:59.4]} 14.
Nbd2 {[%clk 0:02:20.2]} 14... e5 {[%clk 0:01:48.9]} 15. a5 {[%clk 0:02:20]}
15... Nc8 {[%clk 0:01:48.3]} 16. Nb3 {[%clk 0:02:14.6]} 16... e4 {[%clk
0:01:37.2]} 17. Nfd2 {[%clk 0:02:13.8]} 17... Kh8 {[%clk 0:01:13.6]} 18. Nf1
{[%clk 0:02:06.5]} 18... Be6 {[%clk 0:01:11.3]} 19. Nc5 {[%clk 0:02:05.3]} 19...
Qe7 {[%clk 0:01:11.4]} 20. Qb3 {[%clk 0:01:30.7]} 20... Ra7 {[%clk 0:01:09.1]}
21. Ne3 {[%clk 0:01:25.6]} 21... Bg8 {[%clk 0:01:09]} 22. Nxd5 {[%clk
0:01:22.8]} 22... Qd8 {[%clk 0:01:09]} 23. c4 {[%clk 0:01:05.5]} 23... f5 {[%clk
0:00:57.2]} 24. Bc7 {[%clk 0:00:48.2]} 24... Nxd4 {[%clk 0:00:47.4]} 25. Qd1
{[%clk 0:00:33.1]} 25... Qh4 {[%clk 0:00:39]} 26. Bg3 {[%clk 0:00:31.5]} 26...
Qh6 {[%clk 0:00:35.4]} 27. Bf4 {[%clk 0:00:27.8]} 27... g5 {[%clk 0:00:33.1]}
28. Be3 {[%clk 0:00:28.3]} 28... Nxe2+ {[%clk 0:00:30.4]} 29. Rxe2 {[%clk
0:00:29.2]} 29... f4 {[%clk 0:00:25.7]} 30. Bd4 {[%clk 0:00:28.6]} 30... f3
{[%clk 0:00:20]} 31. Rxe4 {[%clk 0:00:28.5]} 31... fxg2 {[%clk 0:00:17.8]} 32.
Ra3 {[%clk 0:00:24.8]} 32... Nd6 {[%clk 0:00:15]} 33. Re7 {[%clk 0:00:19]} 33...
Rf7 {[%clk 0:00:07.4]} 34. Re6 {[%clk 0:00:14.3]} 34... Qh4 {[%clk 0:00:06.6]}
35. Bxg7+ {[%clk 0:00:13.8]} 35... Rxg7 {[%clk 0:00:06.7]} 36. Rxd6 {[%clk
0:00:13.3]} 36... Qxc4 {[%clk 0:00:06.7]} 37. Rc3 {[%clk 0:00:12.2]} 37... Qh4
{[%clk 0:00:02.7]} 38. Nf6 {[%clk 0:00:11.8]} 38... g4 {[%clk 0:00:02.2]} 39.
Nxg4 {[%clk 0:00:11.3]} 39... Ra8 {[%clk 0:00:01.8]} 40. Rd4 {[%clk 0:00:10.9]}
40... Rf8 {[%clk 0:00:01.3]} 41. Rg3 {[%clk 0:00:10.9]} 41... h5 {[%clk
0:00:01.4]} 42. Nh2 {[%clk 0:00:07.4]} 42... Qf6 {[%clk 0:00:01.8]} 43. Qxh5+
{[%clk 0:00:04.7]} 43... Rh7 {[%clk 0:00:02.2]} 44. Qf3 {[%clk 0:00:04.3]} 44...
Qxd4 {[%clk 0:00:02.1]} 45. Qxf8 {[%clk 0:00:04.5]} 45... Qd1+ {[%clk
0:00:01.8]} 46. Kxg2 {[%clk 0:00:05.1]} 46... Qd5+ {[%clk 0:00:02.7]} 47. Nf3
{[%clk 0:00:05.2]} 1-0

[Event "*** SCC Grand Prix: Titled Tuesday Blitz"]
[Site "Chess.com"]
[Date "2020.07.07"]
[Round "10"]
[White "alexsergeyev"]
[Black "RaphCamora"]
[Result "0-1"]
[WhiteElo "2342"]
[BlackElo "2453"]
[TimeControl "180+1"]
[EndTime "11:58:40 PDT"]
[Termination "RaphCamora won on time"]

1. d4 {[%clk 0:03:00.9]} 1... d5 {[%clk 0:02:59.1]} 2. c4 {[%clk 0:03:00.5]}
2... e6 {[%clk 0:02:58.7]} 3. Nc3 {[%clk 0:03:00.3]} 3... c6 {[%clk 0:02:58.1]}
4. Nf3 {[%clk 0:02:59.7]} 4... dxc4 {[%clk 0:02:56]} 5. e3 {[%clk 0:02:59.8]}
5... b5 {[%clk 0:02:54.4]} 6. a4 {[%clk 0:02:59.5]} 6... Bb4 {[%clk 0:02:53.1]}
7. Bd2 {[%clk 0:02:59.7]} 7... a5 {[%clk 0:02:52.1]} 8. axb5 {[%clk 0:02:59.7]}
8... Bxc3 {[%clk 0:02:48.9]} 9. Bxc3 {[%clk 0:03:00.2]} 9... cxb5 {[%clk
0:02:48.2]} 10. b3 {[%clk 0:03:00.6]} 10... Bb7 {[%clk 0:02:45.5]} 11. bxc4
{[%clk 0:03:01]} 11... b4 {[%clk 0:02:46]} 12. Bb2 {[%clk 0:03:01.5]} 12... Nf6
{[%clk 0:02:44.6]} 13. c5 {[%clk 0:03:02.1]} 13... O-O {[%clk 0:02:43.7]} 14.
Bb5 {[%clk 0:03:01.8]} 14... Nc6 {[%clk 0:02:43.4]} 15. Qa4 {[%clk 0:02:59.3]}
15... Qd5 {[%clk 0:02:40.4]} 16. O-O {[%clk 0:02:53.2]} 16... Rfc8 {[%clk
0:02:18.5]} 17. Qa2 {[%clk 0:02:32.9]} 17... Qh5 {[%clk 0:01:55]} 18. Qc4 {[%clk
0:01:29.8]} 18... Ne7 {[%clk 0:01:40.4]} 19. Qe2 {[%clk 0:01:27.2]} 19... Ne4
{[%clk 0:01:22.5]} 20. Ra4 {[%clk 0:01:09.4]} 20... Nd5 {[%clk 0:01:17.6]} 21.
Rc1 {[%clk 0:00:23]} 21... Nec3 {[%clk 0:01:09.6]} 22. Bxc3 {[%clk 0:00:22.8]}
22... Nxc3 {[%clk 0:01:10.1]} 23. Rxc3 {[%clk 0:00:22.8]} 23... bxc3 {[%clk
0:01:05.1]} 24. e4 {[%clk 0:00:22.3]} 24... e5 {[%clk 0:00:57]} 25. Nxe5 {[%clk
0:00:17.4]} 25... Qxe2 {[%clk 0:00:55.8]} 26. Bxe2 {[%clk 0:00:17.2]} 26... Bxe4
{[%clk 0:00:52.4]} 27. Rc4 {[%clk 0:00:15.1]} 27... c2 {[%clk 0:00:49.7]} 28. f3
{[%clk 0:00:14.9]} 28... a4 {[%clk 0:00:45.4]} 29. fxe4 {[%clk 0:00:13.8]} 29...
a3 {[%clk 0:00:45.3]} 30. Rxc2 {[%clk 0:00:12.4]} 30... a2 {[%clk 0:00:45.2]}
31. Rc1 {[%clk 0:00:13]} 31... a1=Q {[%clk 0:00:33.9]} 32. Rxa1 {[%clk
0:00:12.5]} 32... Rxa1+ {[%clk 0:00:34.8]} 33. Kf2 {[%clk 0:00:12.6]} 33... f6
{[%clk 0:00:28.5]} 34. Bc4+ {[%clk 0:00:08.7]} 34... Kf8 {[%clk 0:00:27.1]} 35.
Nd7+ {[%clk 0:00:08.5]} 35... Ke7 {[%clk 0:00:26.7]} 36. Nb6 {[%clk 0:00:09]}
36... Rb8 {[%clk 0:00:19.8]} 37. Ke3 {[%clk 0:00:06.3]} 37... Rxb6 {[%clk
0:00:17.6]} 38. cxb6 {[%clk 0:00:05.9]} 38... Rb1 {[%clk 0:00:18.5]} 39. d5
{[%clk 0:00:05.5]} 39... Rxb6 {[%clk 0:00:18.4]} 40. Kd4 {[%clk 0:00:04.6]}
40... Kd6 {[%clk 0:00:18.8]} 41. Be2 {[%clk 0:00:03.4]} 41... Rb2 {[%clk
0:00:17.8]} 42. Bf3 {[%clk 0:00:03.2]} 42... Rb4+ {[%clk 0:00:18.1]} 43. Kc3
{[%clk 0:00:03]} 43... Ra4 {[%clk 0:00:17.9]} 44. h3 {[%clk 0:00:02]} 44... Ke5
{[%clk 0:00:17.3]} 45. Kd3 {[%clk 0:00:01.5]} 45... Ra2 {[%clk 0:00:11.9]} 0-1